[Event "Marshall CC FIDE Premier April 2024"]
[Site "New York"]
[Date "2024.04.13"]
[Round "2.5"]
[White "Li, Michael"]
[Black "Aravindakshan, Sahana"]
[Result "1/2-1/2"]
[ECO "B48"]
[WhiteElo "2072"]
[BlackElo "1904"]
[Annotator "TA"]
[PlyCount "97"]
[EventDate "2024.02.02"]
[EventType "swiss"]
[EventCountry "USA"]
[SourceTitle "playchess.com"]
[Source "ChessBase"]
[SourceQuality "1"]
[TimeControl "5400+30"]

{[%evp 11,97,35,48,16,19,0,13,0,0,-25,-29,-50,45,32,39,32,33,0,0,-8,-9,0,0,-17,-9,-11,12,9,35,18,27,13,27,0,14,2,16,12,74,0,0,0,0,0,-2,-24,8,0,0,0,0,0,0,0,0,0,0,0,0,0,0,0,0,-34,-34,-34,-30,-28,-72,-70,-55,-60,-26,-28,-28,-15,-16,-86,-48,-21,-24,-209,-193,-177,-17,-17,-17,-79]} 1. e4 {[%emt 0:01:15]} c5 {[%emt 0:00:02]} 2. Nf3 {[%emt 0:00:16]} e6 {[%emt 0:00:08]} 3. d4 {[%emt 0:00:14]} cxd4 {[%emt 0:00:04]} 4. Nxd4 {[%emt 0:00:08]} Nc6 {[%emt 0:00:03]} 5. Nc3 {[%emt 0:00:07]} Qc7 {[%emt 0:00:04]} 6. Be3 {[%emt 0:00:07]} a6 {[%emt 0:00:06]} 7. g4 {[%emt 0:00:07]} h6 {[%emt 0:00:32]} 8. Bg2 {[%emt 0:04:30]} Nf6 {[%emt 0:12:31]} 9. Nxc6 {[%emt 0:08:03]} bxc6 {[%emt 0:03:12]} 10. h4 {[%emt 0:03:00]} h5 {[%emt 0:12:27]} 11. gxh5 {[%emt 0:00:53][%cal Oh5h6]} Nxh5 {[%emt 1:06:51]} ({Black should play} 11... Rb8 $1 $15) 12. Bf3 $14 {[%emt 0:08:34]} Nf6 {[%emt 0:00:00]} 13. Qd2 {[%emt 0:12:10]} Qa5 {[%emt 0:00:00]} 14. Ne2 {[%emt 0:06:53]} Qxd2+ {[%emt 0:00:00]} 15. Bxd2 {[%emt 0:00:02]} d5 {[%emt 0:00:00]} 16. exd5 {[%emt 0:01:44]} cxd5 {[%emt 0:00:00]} 17. Bc3 {[%emt 0:01:45]} Be7 {[%emt 0:00:00]} 18. O-O-O {[%emt 0:02:07]} g6 {[%emt 0:00:00]} 19. Ng3 {[%emt 0:06:11]} Rh7 {[%emt 0:00:00]} 20. h5 {[%emt 0:04:55]} gxh5 {[%emt 0:00:00]} 21. Bxh5 {[%emt 0:01:58]} Bb7 {[%emt 0:00:00][%cal Od5d4]} 22. Bf3 {[%emt 0:05:20]} Rxh1 {[%emt 0:00:00]} 23. Rxh1 {[%emt 0:00:04]} O-O-O {[%emt 0:00:00]} 24. Bd4 {[%emt 0:08:58]} Nd7 {[%emt 0:00:00]} (24... Bc6 $11) 25. Kb1 {[%emt 0:01:53] White is more active.} (25. Rh7 $16) 25... Bc5 {[%emt 0:00:00]} 26. c3 {[%emt 0:02:26]} Bxd4 {[%emt 0:00:00]} 27. cxd4 {[%emt 0:00:04]} Nf6 {[%emt 0:00:00] Against Rh7} 28. Rh4 {[%emt 0:01:12]} Kb8 {[%emt 0:00:12]} 29. Kc2 {[%emt 0:05:53]} Ne4 {[%emt 0:01:09]} 30. Bxe4 {[%emt 0:01:06]} dxe4 $11 {[%emt 0:00:03][%mdl 4096] Endgame. KRB-KRN} 31. Kc3 {[%emt 0:00:35]} f5 {[%emt 0:01:11]} 32. Ne2 {[%emt 0:00:50]} Kc7 {[%emt 0:04:25]} 33. Nf4 {[%emt 0:05:01]} Kd6 {[%emt 0:00:32]} 34. Rh7 {[%emt 0:00:52]} Rc8+ {[%emt 0:02:57]} 35. Kd2 {[%emt 0:00:07]} Bd5 {[%emt 0:00:22]} 36. Ra7 {[%emt 0:02:34]} Rc6 {[%emt 0:00:19]} 37. Ng6 {[%emt 0:00:38]} Rb6 {[%emt 0:01:16][%cal Od5b7] [#] Strongly threatening ...Bb7!} 38. Ne5 $1 {[%emt 0:05:56][%csl Ge5][%cal Ra7d7]} Rxb2+ {[%emt 0:00:12]} 39. Kc3 {[%emt 0:00:32]} Rb7 {[%emt 0:00:02]} 40. Rxa6+ {[%emt 0:00:06]} Ke7 {[%emt 0:00:07]} 41. Ng6+ $1 {[%emt 0:00:39]} Kf6 {[%emt 0:01:35]} 42. Nf4 {[%emt 0:00:08]} Rc7+ {[%emt 0:00:28]} 43. Kd2 {[%emt 0:00:15]} Bc4 {[%emt 0:00:22]} 44. Ra5 {[%emt 0:01:17]} (44. Ra3 $11) 44... Kg5 {[%emt 0:00:33]} 45. Ke3 {[%emt 0:00:12]} Rb7 {[%emt 0:00:37][%cal Oc4a2]} 46. Ng2 $2 {[%emt 0:01:20] [#]} (46. f3 $11 {and White stays safe.}) 46... Rb2 {[%emt 0:00:22]} 47. Nf4 {[%emt 0:00:20] Repels Re2+} Rxa2 $2 {[%emt 0:00:36]} ({Don't play} 47... Bxa2 48. Ra3 $17) (47... Rc2 $19 {And now ...Rc3+ would win.} 48. Ra3 Kg4 (48... Bxa2 49. f3 $15) (48... Rxa2 49. Rxa2 Bxa2 50. f3 $11)) 48. Rxa2 {[%emt 0:00:11]} Bxa2 {[%emt 0:00:01]} 49. Nh3+ {[%emt 0:00:40] Weighted Error Value: White=0.20 (precise) /Black=0.19 (very precise) .  Loses game:     	White=1     	---        Mistake:       	White=3     	Black=3      Inaccurate:     	White=3     	Black=4      OK:         	White=10    	Black=17     Best:        	White=2     	Black=1      Strong:       	White=2     	---} (49. f3 $1 $11 {remains equal.}) 1/2-1/2

[Event "Marshall CC FIDE Premier April 2024"]
[Site "New York"]
[Date "2024.04.13"]
[Round "2.6"]
[White "Muthukumar, Haari"]
[Black "Knowles, Chase"]
[Result "1-0"]
[ECO "C07"]
[WhiteElo "2048"]
[BlackElo "1978"]
[Annotator "TA"]
[PlyCount "59"]
[EventDate "2024.02.02"]
[EventType "swiss"]
[EventCountry "USA"]
[SourceTitle "playchess.com"]
[Source "ChessBase"]
[SourceQuality "1"]
[TimeControl "5400+30"]

{[%evp 17,59,0,0,0,87,-28,-16,-55,-64,-66,-75,-66,0,-45,-44,-59,0,-38,-31,-77,-42,-84,547,524,668,659,756,762,777,780,5605,1877,5597,5597,5585,5585,29987,29988,29988,29989,29992,29993,29993,29991]} 1. e4 {[%emt 0:00:03]} e6 {[%emt 0:03:10]} 2. d4 {[%emt 0:01:58]} d5 {[%emt 0:00:07]} 3. Nd2 {[%emt 0:00:08]} c5 {[%emt 0:00:27]} 4. exd5 {[%emt 0:00:09]} Qxd5 {[%emt 0:00:06]} 5. Ngf3 {[%emt 0:00:05]} cxd4 {[%emt 0:00:18]} 6. Bc4 {[%emt 0:00:13]} Qd6 {[%emt 0:00:09]} 7. Qe2 {[%emt 0:00:15]} Nf6 {[%emt 0:00:43]} 8. Nb3 {[%emt 0:00:13]} Nc6 {[%emt 0:01:58]} 9. Bg5 {[%emt 0:00:11]} Be7 {[%emt 0:01:16]} 10. O-O-O {[%emt 0:00:31]} e5 {[%emt 0:05:38]} (10... a6 $11 {remains equal.}) 11. Bb5 {[%emt 0:14:54] White has more active pieces. The black rooks are passive.} (11. Rhe1 $16) 11... O-O $1 $11 {[%emt 0:10:32]} 12. Rhe1 {[%emt 0:11:27][%cal Ob5c6] The position is equal.} h6 {[%emt 0:10:16]} (12... Bg4 13. Bxc6 bxc6 14. Qxe5 Qxe5 15. Rxe5 $16) 13. Bh4 {[%emt 0:17:42][%cal Ob5c6]} e4 {[%emt 0:15:34]} 14. Bxc6 {[%emt 0:04:20]} bxc6 {[%emt 0:07:01]} ({But not} 14... Qxc6 15. Nfxd4 Qb6 16. Qb5 $11) (14... d3 $1 $15 15. Rxd3 (15. Bxf6 $2 Qxc6 16. Qd2 Bxf6 $19) 15... exd3 16. Qxe7 Qxe7 (16... Qxc6 17. Nbd4 $17) 17. Rxe7 bxc6 18. Bxf6 gxf6 19. cxd3 Be6) 15. Bxf6 {[%emt 0:09:01]} Bxf6 {[%emt 0:04:48]} 16. Qxe4 {[%emt 0:01:32][%cal Of3e5]} Bb7 {[%emt 0:11:24]} ({Black should try} 16... Be6 $1 $15 17. Nbxd4 Bd5) 17. Nbxd4 {[%emt 0:03:54][%cal Bb3d4,Bd4f5,Bf5h6][%mdl 32]} Qc7 {[%emt 0:05:24] ...c5 would now be deadly.} 18. Qg4 {[%emt 0:05:14]} (18. Nf5 $15 {deserves consideration.}) 18... c5 $17 {[%emt 0:04:28]} 19. Nf5 {[%emt 0:01:25][%cal Od1d7] [#]} g6 $2 {[%emt 0:08:08][%mdl 8192] Loses the game.} (19... Bc8 $1 $17 {stays on course.} 20. Qe4 (20. Nxh6+ Kh8 $11) 20... Be6) 20. Nxh6+ $18 {[%emt 0:06:39] A dynamic duo of knights.} Kh7 {[%emt 0:00:24]} 21. Ng5+ {[%emt 0:01:00]} Kg7 {[%emt 0:01:37][%cal Ob7c8,Bh7g7,Bg7g8,Bg8f8][%mdl 32] [#] ...Bc8! is the strong threat.} 22. Nf5+ $1 {[%emt 0:07:05][%mdl 512]} Kg8 {[%emt 0:00:27] [#]} 23. Qh4 $1 {[%emt 0:00:47][%csl Gg5][%cal Rh4h7]} Rfd8 {[%emt 0:02:06]} (23... Bxg5+ 24. Qxg5) 24. Qh7+ {[%emt 0:00:36]} Kf8 {[%emt 0:00:04]} 25. Ne6+ {[%emt 0:00:22]} fxe6 {[%emt 0:00:31]} 26. Qxc7 {[%emt 0:00:04]} Bd5 {[%emt 0:00:15]} 27. Nd6 {[%emt 0:02:12][%csl Gd6][%cal Rc7f7] White mates.} Bg5+ {[%emt 0:03:10]} 28. Kb1 {[%emt 0:00:13][%csl Gd6][%cal Rc7f7]} Kg8 {[%emt 0:00:03]} 29. Qf7+ {[%emt 0:00:28]} Kh8 {[%emt 0:00:02]} 30. Qxg6 {[%emt 0:00:13] Weighted Error Value: White=0.27 (precise) /Black=0.91.  Loses game:     	---       	Black=1      Mistake:       	White=2     	Black=3      Inaccurate:     	White=3     	---        OK:         	White=3     	Black=2      Best:        	White=2     	Black=2      Strong:       	---       	Black=1} 1-0

[Event "Marshall CC FIDE Premier April 2024"]
[Site "New York"]
[Date "2024.04.13"]
[Round "2.7"]
[White "Jain, Vihaan"]
[Black "Ho, Carter"]
[Result "0-1"]
[ECO "B24"]
[WhiteElo "1931"]
[BlackElo "2108"]
[Annotator "RC"]
[PlyCount "86"]
[EventDate "2024.02.02"]
[EventType "swiss"]
[EventCountry "USA"]
[SourceTitle "playchess.com"]
[Source "ChessBase"]
[SourceQuality "1"]
[TimeControl "5400+30"]

1. e4 {[%emt 0:01:02]} c5 {[%emt 0:00:31]} 2. Nf3 {[%emt 0:00:05]} e6 {[%emt 0:00:06]} 3. d4 {[%emt 0:00:05]} cxd4 {[%emt 0:00:05]} 4. Nxd4 {[%emt 0:00:08]} Nf6 {[%emt 0:00:06]} 5. Nc3 {[%emt 0:00:10]} Nc6 {[%emt 0:00:07]} 6. g3 {[%emt 0:00:06]} Be7 {[%emt 0:01:49]} 7. Bg2 {[%emt 0:00:03]} O-O {[%emt 0:02:26]} 8. O-O {[%emt 0:00:06]} Qc7 {[%emt 0:05:01]} 9. Ncb5 {[%emt 0:08:58]} Qb8 {[%emt 1:24:49]} 10. c4 {[%emt 1:24:47]} Rd8 {[%emt 0:00:00]} 11. Nc3 {[%emt 0:00:00]} Bc5 {[%emt 0:00:00]} 12. Nb3 {[%emt 0:00:00]} Be7 {[%emt 0:00:00]} 13. Bf4 {[%emt 0:00:00]} d6 {[%emt 0:00:00]} 14. Qe2 {[%emt 0:00:00]} e5 {[%emt 0:00:00]} 15. Be3 {[%emt 0:00:00]} b6 {[%emt 0:00:00]} 16. Nd5 {[%emt 0:00:00]} Ba6 {[%emt 0:00:00]} 17. Rfd1 {[%emt 0:00:00]} Nxd5 {[%emt 0:00:00]} 18. exd5 {[%emt 0:00:00]} Na5 {[%emt 0:00:00]} 19. Nd2 {[%emt 0:00:00]} b5 {[%emt 0:00:00]} 20. cxb5 {[%emt 0:00:00]} Bxb5 {[%emt 0:00:00]} 21. Qh5 {[%emt 0:00:00]} Bd3 {[%emt 0:00:00]} 22. Ne4 {[%emt 0:00:00]} Qxb2 {[%emt 0:00:00]} 23. Bd2 {[%emt 0:00:00]} Nc4 {[%emt 0:00:00]} 24. Bc3 {[%emt 0:00:00]} Be2 {[%emt 0:00:00]} 25. g4 {[%emt 0:00:00]} Qa3 {[%emt 0:00:00]} 26. Re1 {[%emt 0:00:00]} Bd3 {[%emt 0:00:00]} 27. Qh3 {[%emt 0:00:00]} Bxe4 {[%emt 0:00:00]} 28. Bxe4 {[%emt 0:00:00]} g6 {[%emt 0:00:00]} 29. Rac1 {[%emt 0:00:00]} Rdc8 {[%emt 0:00:00]} 30. f4 {[%emt 0:00:00]} Nd2 {[%emt 0:00:00]} 31. Bg2 {[%emt 0:00:00]} Nb1 {[%emt 0:00:00]} 32. Rxb1 {[%emt 0:00:14]} Rxc3 {[%emt 0:00:00]} 33. Qh6 {[%emt 0:00:29]} Qc5+ {[%emt 0:00:00]} 34. Kh1 {[%emt 0:00:06]} Bf8 {[%emt 0:04:04]} 35. Qg5 {[%emt 0:00:35]} Re8 {[%emt 0:01:11]} 36. fxe5 {[%emt 0:01:57]} Rxe5 {[%emt 0:00:14]} 37. Rxe5 {[%emt 0:00:16]} dxe5 {[%emt 0:00:04]} 38. Qf6 {[%emt 0:01:34]} Rc1+ {[%emt 0:01:42]} 39. Rxc1 {[%emt 0:00:16]} Qxc1+ {[%emt 0:00:03]} 40. Qf1 {[%emt 0:01:20]} Qd2 {[%emt 0:01:20]} 41. Qb1 {[%emt 0:00:39]} Bd6 {[%emt 0:00:59]} 42. h3 {[%emt 0:01:48]} e4 {[%emt 0:00:18]} 43. Qb5 {[%emt 0:01:03]} e3 {[%emt 0:00:24]} 0-1

[Event "Marshall CC FIDE Premier April 2024"]
[Site "New York"]
[Date "2024.04.13"]
[Round "2.8"]
[White "Lin, Bryan Enming"]
[Black "Gartenlaub, Corin"]
[Result "1-0"]
[ECO "B33"]
[WhiteElo "2087"]
[BlackElo "1892"]
[Annotator "RC"]
[PlyCount "87"]
[EventDate "2024.02.02"]
[EventType "swiss"]
[EventCountry "USA"]
[SourceTitle "playchess.com"]
[Source "ChessBase"]
[SourceQuality "1"]
[TimeControl "5400+30"]

1. e4 {[%emt 0:00:03]} c5 {[%emt 0:01:44]} 2. Nf3 {[%emt 0:00:24]} Nc6 {[%emt 0:00:06]} 3. d4 {[%emt 0:00:09]} cxd4 {[%emt 0:00:04]} 4. Nxd4 {[%emt 0:00:11]} Nf6 {[%emt 0:00:02]} 5. Nc3 {[%emt 0:00:11]} e5 {[%emt 0:00:09]} 6. Ndb5 {[%emt 0:00:11]} d6 {[%emt 0:00:06]} 7. Bg5 {[%emt 0:00:16]} a6 {[%emt 0:00:04]} 8. Na3 {[%emt 0:00:23]} b5 {[%emt 0:00:08]} 9. Nd5 {[%emt 0:00:07]} Be7 {[%emt 0:00:09]} 10. Bxf6 {[%emt 0:00:11]} Bxf6 {[%emt 0:00:06]} 11. c3 {[%emt 0:00:06]} Rb8 {[%emt 0:00:05]} 12. Nc2 {[%emt 0:00:26]} Bg5 {[%emt 0:00:04]} 13. a4 {[%emt 0:00:47]} bxa4 {[%emt 0:00:10]} 14. Ncb4 {[%emt 0:00:12]} Nxb4 {[%emt 0:00:36]} 15. cxb4 {[%emt 0:00:18]} O-O {[%emt 0:01:12]} 16. Rxa4 {[%emt 0:00:24]} a5 {[%emt 0:04:31]} 17. b5 {[%emt 0:00:07]} Bd7 {[%emt 0:02:54]} 18. Nc3 {[%emt 0:00:07]} Qb6 {[%emt 0:01:46]} 19. Bc4 {[%emt 0:02:29]} Be6 {[%emt 0:04:28]} 20. O-O {[%emt 1:33:28]} Rbc8 {[%emt 0:12:00]} 21. Qe2 {[%emt 0:00:00]} Kh8 {[%emt 0:08:42]} 22. Rd1 {[%emt 0:00:00]} Rc5 {[%emt 0:04:33]} 23. g3 {[%emt 0:00:00]} Qc7 {[%emt 0:11:22]} 24. Bd5 {[%emt 0:00:00]} Bd7 {[%emt 0:05:57]} 25. Rda1 {[%emt 0:00:00]} Bd8 {[%emt 0:03:56]} 26. Bc4 {[%emt 0:00:00]} Be6 {[%emt 0:01:26]} 27. Bd5 {[%emt 0:00:00]} Qb8 {[%emt 0:02:15]} 28. Bc6 {[%emt 0:00:00]} Bb6 {[%emt 0:04:50]} 29. Kg2 {[%emt 0:00:00]} f5 {[%emt 0:04:26]} 30. exf5 {[%emt 0:00:00]} Rxf5 {[%emt 0:03:51]} 31. Rxa5 {[%emt 0:00:00]} Bxa5 {[%emt 0:02:55]} 32. Rxa5 {[%emt 0:00:00]} Qc7 {[%emt 0:00:51]} 33. Ra8+ {[%emt 0:00:00]} Bg8 {[%emt 0:00:07]} 34. Nd5 {[%emt 0:00:00]} Qf7 {[%emt 0:00:53]} 35. Ne3 {[%emt 0:00:00]} Rf6 {[%emt 0:00:40]} 36. b4 {[%emt 0:00:00]} Rxb5 {[%emt 0:03:53]} 37. Qxb5 {[%emt 0:00:00]} Rxf2+ {[%emt 0:00:10]} 38. Kg1 {[%emt 0:00:00]} Rb2 {[%emt 0:00:28]} 39. Qf1 {[%emt 0:00:00]} Qb3 {[%emt 0:00:53]} 40. Bd5 {[%emt 0:00:00]} Qxe3+ {[%emt 0:00:15]} 41. Kh1 {[%emt 0:00:00]} h5 {[%emt 0:00:51]} 42. Rxg8+ {[%emt 0:00:00]} Kh7 {[%emt 0:00:18]} 43. Qf5+ {[%emt 0:00:00]} g6 {[%emt 0:00:22]} 44. Qxg6# {[%emt 0:00:00]} 1-0

[Event "Marshall CC FIDE Premier April 2024"]
[Site "New York"]
[Date "2024.04.13"]
[Round "2.9"]
[White "Chachere, Theodore"]
[Black "Jiang, Jason"]
[Result "1/2-1/2"]
[ECO "E32"]
[WhiteElo "1897"]
[BlackElo "2005"]
[Annotator "TA"]
[PlyCount "121"]
[EventDate "2024.02.02"]
[EventType "swiss"]
[EventCountry "USA"]
[SourceTitle "playchess.com"]
[Source "ChessBase"]
[SourceQuality "1"]
[TimeControl "5400+30"]

{[%evp 15,121,0,33,36,26,8,39,22,27,12,29,21,47,36,45,27,33,31,62,59,86,0,61,67,62,0,39,18,47,47,51,0,0,0,0,0,7,0,0,0,0,0,0,0,0,-14,0,-20,0,-23,0,0,0,0,0,0,0,0,0,0,0,-39,0,0,0,0,0,0,0,0,465,442,5642,5631,5377,5631,2419,0,0,0,0,0,0,0,0,0,29958,29957,29958,0,0,0,0,0,0,0,0,0,0,0,0,0,0,0,0,0,0,0]} 1. d4 {[%emt 0:03:08]} Nf6 {[%emt 0:00:12]} 2. c4 {[%emt 0:00:13]} e6 {[%emt 0:00:12]} 3. Nc3 {[%emt 0:00:10]} Bb4 {[%emt 0:00:20]} 4. Qc2 {[%emt 0:00:08]} O-O {[%emt 0:01:58]} 5. a3 {[%emt 0:00:07]} Bxc3+ {[%emt 0:00:36]} 6. Qxc3 {[%emt 0:00:07]} b6 {[%emt 0:05:07]} 7. Nf3 {[%emt 0:00:16]} Bb7 {[%emt 0:01:43]} 8. e3 {[%emt 0:00:18]} d6 {[%emt 0:01:21][%cal Bd7d6,Bd6c5][%mdl 32]} 9. Be2 {[%emt 0:00:44]} Nbd7 {[%emt 0:02:24]} 10. b4 {[%emt 0:01:59]} c5 {[%emt 0:10:56]} 11. dxc5 {[%emt 0:04:31] White is slightly better.} dxc5 {[%emt 0:00:48]} 12. b5 {[%emt 0:01:46]} Qc7 {[%emt 0:03:47]} 13. Bb2 {[%emt 0:00:48]} Rfe8 {[%emt 0:01:28]} 14. O-O {[%emt 0:07:52]} e5 {[%emt 0:03:10]} 15. Rfd1 {[%emt 0:01:42]} Nf8 {[%emt 0:16:02]} 16. a4 {[%emt 0:06:41]} (16. Nxe5 Ne4 17. Qe1 Rxe5 18. Bxe5 Qxe5 $17) 16... Ne4 {[%emt 0:04:59]} 17. Qc2 {[%emt 0:01:08][%cal Oa4a5]} a5 {[%emt 0:01:42] [#]} 18. Ne1 {[%emt 0:02:11]} (18. bxa6 $1 $16 Rxa6 19. Rd5) 18... Ne6 {[%emt 0:09:10]} ({Better is} 18... Nd6 $11) 19. f3 $14 {[%emt 0:03:42]} Nf6 {[%emt 0:00:31][%cal Be4f6,Bf6e8,Be8c7][%mdl 32]} 20. Bd3 {[%emt 0:12:27]} (20. Nd3 $14) 20... Nf8 {[%emt 0:34:04]} 21. Bf5 {[%emt 0:02:38]} Rad8 {[%emt 0:00:00]} 22. Rxd8 {[%emt 0:01:14]} Rxd8 {[%emt 0:00:00]} 23. Rd1 {[%emt 0:01:39]} (23. Nd3 $14) 23... Rxd1 $11 {[%emt 0:00:00]} 24. Qxd1 {[%emt 0:00:04]} Ne8 {[%emt 0:00:00]} 25. e4 {[%emt 0:10:37]} f6 {[%emt 0:00:00]} 26. Nc2 {[%emt 0:02:19]} Qd6 {[%emt 0:00:00]} 27. Qe2 {[%emt 0:05:56]} Nc7 {[%emt 0:00:00]} 28. Ne3 {[%emt 0:03:40]} g6 {[%emt 0:00:00]} 29. Bh3 {[%emt 0:00:16]} Nfe6 {[%emt 0:00:00]} 30. Nd5 {[%emt 0:04:56]} Bxd5 {[%emt 0:00:00]} 31. exd5 {[%emt 0:00:23]} Nf4 {[%emt 0:00:00]} 32. Qe4 {[%emt 0:01:14]} Nxh3+ {[%emt 0:00:00]} 33. gxh3 {[%emt 0:00:13][%mdl 4096] Endgame. KQB-KQN} Kf7 {[%emt 0:00:00]} 34. Qg4 $1 {[%emt 0:05:14]} Ne8 {[%emt 0:00:00] ...Qe7 would now be deadly.} 35. Qc8 {[%emt 0:09:18]} Ng7 {[%emt 0:01:20]} 36. Qb7+ {[%emt 0:02:49]} Kg8 {[%emt 0:01:00]} 37. Qc6 {[%emt 0:00:22]} Nf5 {[%emt 0:00:36]} 38. Bc1 {[%emt 0:01:03]} Kf7 {[%emt 0:02:21]} 39. Qb7+ {[%emt 0:04:11]} Ne7 {[%emt 0:01:09]} 40. Bh6 {[%emt 0:01:09]} g5 {[%emt 0:01:23][%cal Oe5e4]} 41. h4 {[%emt 0:00:03]} gxh4 {[%emt 0:00:37]} 42. Qa8 {[%emt 0:00:16] Inhibits Qd8.} Nf5 $2 {[%emt 0:00:55][%mdl 8192]} (42... Kg6 $11 43. Bf8 Kf7) 43. Qh8 $1 $18 {[%emt 0:00:12]} Kg6 {[%emt 0:00:14]} (43... Nxh6 $142 44. Qxh7+ Ke8) 44. Bf8 {[%emt 0:00:15] Intending Qg8+ and mate.} Qd7 {[%emt 0:01:07]} 45. Qg8+ {[%emt 0:00:08]} Ng7 {[%emt 0:00:16]} 46. Qxg7+ $2 {[%emt 0:00:36]} (46. d6 $18 Kf5 47. Qxh7+ (47. Bxg7 Qxd6 48. Qxh7+ Ke6 $18) (47. Qxg7 Qxg7+ 48. Bxg7 Ke6 $18) 47... Ke6 48. Qxg7 (48. Bxg7 Qxd6 49. Qg8+ Kd7 $18) 48... Qxg7+ 49. Bxg7) 46... Qxg7 $11 {[%emt 0:00:08]} 47. Bxg7 {[%emt 0:00:03]} Kxg7 $18 {[%emt 0:00:11] KP-KP} 48. Kg2 {[%emt 0:00:34]} f5 {[%emt 0:01:13][%cal Bf6f5,Bf5e4][%mdl 32]} 49. Kh3 {[%emt 0:00:45]} Kf6 {[%emt 0:00:28]} 50. Kxh4 {[%emt 0:01:19]} e4 $2 {[%emt 0:00:37][%mdl 8192] [#]} (50... Kg6 $11) 51. fxe4 {[%emt 0:00:10]} fxe4 {[%emt 0:00:04]} 52. Kg3 $2 {[%emt 0:00:15]} (52. Kg4 {mates} Ke5 53. Kh3 Kf6 54. Kh4 Ke5 55. Kg4 h6 56. Kg3 h5 57. Kf2) 52... Kf5 $1 $11 {[%emt 0:00:48] The position is equal.} (52... Ke5 $2 53. Kg4 h5+ 54. Kg3 $18 (54. Kxh5 e3 55. Kg6 e2 56. Kf7 Kd6 57. Kg6 e1=Q 58. Kf5 Qe3 59. Kg6 Qf2 60. Kg7 Ke5 61. h3 Qf6+ 62. Kh7 Qf7+ 63. Kh8 Kf6 64. h4 Qg7#)) 53. Kf2 {[%emt 0:00:11]} Kf6 $1 {[%emt 0:00:12]} 54. Ke3 {[%emt 0:01:57]} Ke5 {[%emt 0:00:02]} 55. h4 {[%emt 0:00:45]} (55. h3 $5) 55... h5 {[%emt 0:00:17]} 56. Ke2 {[%emt 0:01:01] White threatens Ke3 and mate.} Kf5 {[%emt 0:00:15]} (56... Kd4 57. d6 Kxc4 58. d7 Kb3 59. d8=Q (59. d8=B Kxa4 60. Bxb6 Kxb5 $11) 59... c4 60. Qxb6 c3 61. Qc5 (61. Qxa5 c2 62. Kd2 Kc4 63. b6 Kd4 64. b7 c1=R 65. Kxc1 e3 66. b8=Q Kd3 67. Qf5+ Ke2 68. Qbe5 Ke1 69. Qxe3#) (61. Qe6+ Kb2 62. b6 c2 63. b7 c1=N+ 64. Ke3 Nd3 65. b8=Q+ Nb4 66. Qbe5+ Kc2 67. Qc4+ Kb1 68. Qb3+ Kc1 69. Qeb2#)) 57. Kf2 {[%emt 0:00:28]} (57. Ke3 $5 Ke5 $8 58. Kf2 $11 (58. d6 Kxd6 59. Kxe4 Ke6 $11)) 57... Kf6 $1 {[%emt 0:00:02]} 58. d6 {[%emt 0:00:39] Threatening mate with Ke3.} Ke6 {[%emt 0:00:10]} 59. Ke3 {[%emt 0:00:05]} Kxd6 {[%emt 0:00:04] ( -> ...Ke5)} 60. Kxe4 {[%emt 0:00:11] Kf5 would kill now.} Ke6 {[%emt 0:00:03]} 61. Kf4 {[%emt 0:00:08] Weighted Error Value: White=0.27 (precise) /Black=0.36.  Loses game:     	---       	Black=2      Mistake:       	White=3     	Black=2      Inaccurate:     	White=1     	Black=7      OK:         	White=17    	Black=18     Best:        	White=2     	Black=3      Strong:       	White=2     	Black=2} 1/2-1/2